bitfinex-derivatives/quotes_SOLF0:USTF0_20250522
["timestamp","ask_amount","ask_price","bid_price","bid_amount"]
[1747890736986,5.6622,176.57,176.56,0.04276834]
[1747890738983,5.662,176.58,176.56,0.04276834]
[1747890739191,0.04338512,176.6,176.56,0.04276834]
[1747890740281,5.6622,176.58,176.56,0.04276834]
[1747890741987,5.70478512,176.6,176.56,5.70516834]
[1747890742782,0.04338512,176.6,176.56,5.70516834]
[1747890742993,0.04338512,176.6,176.56,0.04276834]
[1747890743178,5.6621,176.58,176.56,0.04276834]
[1747890745388,5.6622,176.57,176.56,0.04276834]
[1747890746592,0.04338512,176.6,176.56,0.04276834]
[1747890746991,5.6619,176.58,176.56,0.04276834]
[1747890747298,0.04338512,176.6,176.56,0.04276834]
[1747890748399,0.04338512,176.6,176.57,5.6621]
[1747890748589,0.04338512,176.6,176.56,0.04276834]
[1747890749197,5.70478512,176.6,176.56,0.04276834]
[1747890749392,0.04338512,176.6,176.56,0.04276834]
[1747890749702,5.27194454,176.64,176.58,7.24470572]
[1747890750002,5.27194454,176.68,176.58,7.24470572]
[1747890750302,5.27194454,176.68,176.57,128.7865]
[1747890750693,5.69904566,176.64,176.61,0.04264258]
[1747890751097,0.03904566,176.64,176.61,0.04264258]
[1747890751594,5.69914566,176.64,176.61,0.04264258]
[1747890751803,0.03904566,176.64,176.61,0.04264258]
[1747890752101,0.03904566,176.64,176.62,5.6604]
[1747890752602,0.03904566,176.64,176.61,5.70354258]
[1747890754592,0.03904566,176.64,176.62,5.6605]
[1747890756703,0.03904566,176.64,176.61,5.70354258]
[1747890757905,0.03904566,176.64,176.61,0.04264258]
[1747890758308,0.03904566,176.64,176.62,126.86]
[1747890758902,104.24452338,176.7,176.62,126.86]
[1747890759908,5.6585,176.69,176.64,5.6598]
[1747890760109,0.03912582,176.68,176.65,0.03952499]
[1747890761010,5.69792582,176.68,176.65,0.03952499]
[1747890761410,0.03912582,176.68,176.65,0.03952499]
[1747890762610,5.69802582,176.68,176.65,0.03952499]
[1747890763113,0.03912582,176.68,176.65,0.03952499]
[1747890764611,5.6591,176.67,176.65,0.03952499]
[1747890766709,5.6594,176.66,176.65,0.03952499]
[1747890768715,0.03912582,176.68,176.65,0.03952499]
[1747890769515,0.03912582,176.68,176.67,5.659]
[1747890770817,0.03912582,176.68,176.67,132.479]
[1747890776715,5.6569,176.74,176.7,5.658]
[1747890777621,5.69305555,176.74,176.7,5.70000095]
[1747890777822,0.03615555,176.74,176.7,5.70000095]
[1747890778018,0.03615555,176.74,176.7,0.04200095]
[1747890778723,0.03615555,176.74,176.73,5.6571]
[1747890778923,0.03615555,176.74,176.73,132.3171]
[1747890779614,5.27194454,176.83,176.73,126.66]
[1747890780322,5.27194454,176.83,176.75,5.6564]
[1747890780623,0.03845085,176.81,176.77,0.04071638]
[1747890781424,5.6555,176.78,176.77,0.04071638]
[1747890783326,0.03845085,176.81,176.77,0.04071638]
[1747890785023,0.03845085,176.81,176.73,107.35711638]
[1747890785628,5.6556,176.78,176.74,5.6567]
[1747890785917,5.6556,176.78,176.73,107.35711638]
[1747890786123,0.03796683,176.77,176.74,5.69494033]
[1747890786524,0.03796683,176.77,176.74,0.03824033]
[1747890786724,0.03796683,176.77,176.74,5.69484033]
[1747890793130,5.69386683,176.77,176.74,0.03824033]
[1747890797733,0.03796683,176.77,176.74,0.03824033]
[1747890798329,5.69386683,176.77,176.74,0.03824033]
[1747890798735,0.03796683,176.77,176.74,0.03824033]
[1747890798937,5.6563,176.76,176.74,0.03824033]
[1747890799635,5.69396683,176.77,176.74,0.03824033]
[1747890800637,0.03796683,176.77,176.74,5.69494033]
[1747890801839,5.69386683,176.77,176.74,5.69494033]
[1747890802244,0.03796683,176.77,176.74,0.03824033]
[1747890802436,5.6564,176.76,176.74,0.03824033]
[1747890802943,5.69386683,176.77,176.74,0.03824033]
[1747890803138,0.03796683,176.77,176.74,0.03824033]
[1747890803543,0.03796683,176.77,176.75,5.6563]
[1747890805645,0.03796683,176.77,176.74,5.69494033]
[1747890806243,5.69386683,176.77,176.74,0.03824033]
[1747890807238,0.03796683,176.77,176.74,0.03824033]
[1747890807842,0.03796683,176.77,176.74,5.69504033]
[1747890809041,0.03796683,176.77,176.75,5.6565]
[1747890809438,0.03796683,176.77,176.74,0.03824033]
[1747890810547,0.03796683,176.77,176.74,5.69494033]
[1747890810743,5.69386683,176.77,176.74,0.03824033]
[1747890811047,0.03796683,176.77,176.74,0.03824033]
[1747890811540,5.6562,176.76,176.74,0.03824033]
[1747890812047,0.03796683,176.77,176.74,0.03824033]
[1747890812948,5.69386683,176.77,176.74,0.03824033]
[1747890815156,0.03796683,176.77,176.74,0.03824033]
[1747890815752,0.03796683,176.77,176.74,5.69504033]
[1747890817149,0.03796683,176.77,176.74,0.03824033]
[1747890817945,5.69386683,176.77,176.74,0.03824033]
[1747890818244,0.03796683,176.77,176.74,0.03824033]
[1747890818454,0.03796683,176.77,176.74,5.69504033]
[1747890818658,0.03796683,176.77,176.74,0.03824033]
[1747890819457,5.69406683,176.77,176.74,0.03824033]
[1747890819760,0.03796683,176.77,176.74,0.03824033]
[1747890820261,0.03796683,176.77,176.74,5.69504033]
[1747890821161,0.03796683,176.77,176.74,0.03824033]
[1747890823962,5.6565,176.75,176.74,0.03824033]
[1747890824462,0.03796683,176.77,176.74,0.03824033]
[1747890825554,0.03796683,176.77,176.75,5.6564]
[1747890825755,0.03796683,176.77,176.74,0.03824033]
[1747890826162,5.69406683,176.77,176.74,0.03824033]
[1747890826662,5.69406683,176.77,176.74,5.69504033]
[1747890826857,5.69406683,176.77,176.74,0.03824033]
[1747890827261,5.6562,176.76,176.74,0.03824033]
[1747890828155,5.6565,176.75,176.74,0.03824033]
[1747890828358,0.03796683,176.77,176.74,0.03824033]
[1747890829563,5.6563,176.76,176.74,0.03824033]
[1747890830273,5.6565,176.75,176.74,0.03824033]
[1747890832754,0.03796683,176.77,176.74,0.03824033]
[1747890834367,5.69386683,176.77,176.74,0.03824033]
[1747890836071,0.03796683,176.77,176.74,5.69494033]
[1747890836671,0.03796683,176.77,176.75,5.6564]
[1747890837875,0.03796683,176.77,176.74,5.69494033]
[1747890838373,5.6562,176.76,176.74,0.03824033]
[1747890839082,5.6565,176.75,176.74,0.03824033]
[1747890839580,0.03796683,176.77,176.74,0.03824033]
[1747890840575,5.6563,176.76,176.74,0.03824033]
[1747890842278,0.03796683,176.77,176.74,0.03824033]
[1747890843583,5.6564,176.76,176.74,0.03824033]
[1747890844078,0.03796683,176.77,176.74,0.03824033]
[1747890844478,5.6565,176.75,176.74,0.03824033]
[1747890846087,5.6581,176.71,176.68,126.1]
[1747890846581,5.6565,176.76,176.68,126.1]
[1747890846981,126.1,176.8,176.68,126.1]
[1747890847182,0.03876739,176.76,176.72,0.04321911]
[1747890847382,0.03876739,176.76,176.72,5.70051911]
[1747890848184,0.03876739,176.76,176.73,5.6571]
[1747890848781,0.03876739,176.76,176.74,5.6567]
[1747890849991,0.03876739,176.76,176.75,5.6565]
[1747890851488,0.03876739,176.76,176.73,126.1]
[1747890851489,0.03876739,176.76,176.74,5.6567]
[1747890853390,0.03876739,176.76,176.75,5.6565]
[1747890855190,131.37194454,176.84,176.79,5.6551]
[1747890855790,10.92574454,176.84,176.79,5.6551]
[1747890855976,5.6538,176.84,176.79,5.6551]
[1747890856175,0.03632295,176.83,176.8,0.03834129]
[1747890856993,5.69032295,176.83,176.8,0.03834129]
[1747890857287,0.03632295,176.83,176.8,0.03834129]
[1747890857481,5.6546,176.81,176.8,0.03834129]
[1747890857684,0.03632295,176.83,176.8,0.03834129]
[1747890858588,5.6546,176.81,176.8,0.03834129]
[1747890881111,10.30133923,176.81,176.8,4.129e-05]
[1747890882613,5.6546,176.81,176.8,4.129e-05]
[1747890894308,5.6574,176.73,176.7,8.31366413]
[1747890895214,5.6574,176.73,176.7,8.35061793]
[1747890895412,5.69612956,176.73,176.7,8.35061793]
[1747890895612,5.69612956,176.73,176.7,14.00871793]
[1747890895919,0.03872956,176.73,176.7,8.35061793]
[1747890896216,0.03872956,176.73,176.7,4.0899538]
[1747890896915,5.27194454,176.79,176.72,7.26166279]
[1747890897417,5.27194454,176.79,176.76,5.6559]
[1747890897912,5.30776006,176.79,176.76,5.69465287]
[1747890898919,0.03581552,176.79,176.77,5.6558]
[1747890899319,0.03581552,176.79,176.76,5.69485287]
[1747890900519,0.03581552,176.79,176.77,5.6556]
[1747890900821,0.03581552,176.79,176.76,0.03875287]
[1747890901322,0.03581552,176.79,176.77,5.6559]
[1747890903220,0.03581552,176.79,176.76,5.69485287]
[1747890903622,0.03581552,176.79,176.76,0.03875287]
[1747890904626,0.03581552,176.79,176.77,5.6558]
[1747890905220,131.05194454,176.84,176.76,0.03875287]
[1747890905426,5.27194454,176.84,176.76,7.30041566]
[1747890905618,10.92554454,176.84,176.77,3.9037]
[1747890905815,5.27194454,176.84,176.77,3.9037]
[1747890906118,12.70982679,176.88,176.77,3.9037]
[1747890906321,0.04302853,176.84,176.81,0.0434211]
[1747890906624,0.04302853,176.84,176.81,125.4434211]
[1747890909121,0.04302853,176.84,176.81,131.0979211]
[1747890909628,0.04302853,176.84,176.82,5.6541]
[1747890911024,0.04302853,176.84,176.83,5.6539]
[1747890911237,5.6514,176.91,176.82,1.9782]
[1747890911430,7.05742679,176.95,176.82,1.9782]
[1747890911728,7.05742679,176.95,176.86,5.6528]
[1747890912029,7.05742679,176.95,176.86,131.0328]
[1747890912242,0.04287959,176.92,176.89,0.03812593]
[1747890914243,132.43742679,177.0,176.89,0.03812593]
[1747890914441,7.05742679,177.0,176.9,107.48]
[1747890914642,5.6489,176.99,176.91,132.64166279]
[1747890914838,7.05742679,177.0,176.91,125.38]
[1747890915049,7.05742679,177.0,176.91,125.36]
[1747890915536,7.05742679,177.0,176.94,0.03889493]
[1747890916032,125.38,177.04,176.94,0.03889493]
[1747890916343,5.6501,176.95,176.94,0.03889493]
[1747890916533,125.38,177.04,176.94,0.03889493]
[1747890918235,125.38,177.04,176.94,5.68929493]
[1747890918536,125.38,177.04,176.94,0.03889493]
[1747890919539,5.6494,176.98,176.94,0.03889493]
[1747890921147,5.6495,176.97,176.94,0.03889493]
[1747890921640,5.6501,176.95,176.94,0.03889493]
[1747890926350,7.26166279,177.03,176.94,0.03889493]
[1747890926543,9.32206279,177.03,176.94,0.03889493]
[1747890926749,125.3,177.02,176.94,5.68929493]
[1747890927054,5.649,176.99,176.94,5.68929493]
[1747890927550,5.6492,176.98,176.94,0.03889493]
[1747890927942,125.3,177.02,176.94,0.03889493]
[1747890928250,5.649,176.99,176.94,5.68919493]
[1747890929248,5.649,176.99,176.95,5.6501]
[1747890929549,5.649,176.99,176.94,0.03889493]
[1747890929751,5.649,176.99,176.94,5.68929493]
[1747890929940,5.6486,177.0,176.94,0.03889493]
[1747890930139,125.3,177.02,176.94,5.68919493]
[1747890930850,5.649,176.99,176.94,5.68919493]
[1747890931247,125.3,177.02,176.95,5.65]
[1747890931550,125.3,177.02,176.94,0.03889493]
[1747890932143,5.6472,177.05,176.94,1.93209493]
[1747890932348,104.03295174,177.06,176.98,0.04035022]
[1747890932561,104.03295174,177.06,176.98,124.92035022]
[1747890932847,5.6475,177.04,176.98,130.56935022]
[1747890933054,104.03295174,177.06,176.98,124.92035022]
[1747890933256,104.03295174,177.06,176.99,5.6485]
[1747890933453,5.6472,177.05,176.99,5.6485]
[1747890934554,5.6473,177.04,176.99,5.6485]
[1747890934951,5.6473,177.04,176.98,130.56935022]
[1747890935150,5.6476,177.03,176.98,130.56935022]
[1747890935553,5.6488,176.99,176.98,0.04035022]
[1747890935955,5.6488,176.99,176.89,126.798]
[1747890935956,7.26166279,176.99,176.89,126.798]
[1747890936253,1.9958,176.98,176.89,126.798]
[1747890936954,0.03913984,176.95,176.92,0.0365441]
[1747890937155,5.68923984,176.95,176.92,0.0365441]
[1747890937458,0.03913984,176.95,176.92,0.0365441]
[1747890939259,5.68933984,176.95,176.92,0.0365441]
[1747890940662,5.6505,176.94,176.92,0.0365441]
[1747890941256,0.03913984,176.95,176.92,0.0365441]
[1747890941763,5.6504,176.94,176.92,0.0365441]
[1747890942059,0.03913984,176.95,176.92,0.0365441]
[1747890943559,5.6507,176.93,176.92,0.0365441]
[1747890945667,0.03913984,176.95,176.85,613.64]
[1747890945858,2.035,176.94,176.85,124.88]
[1747890946369,1.9587,176.93,176.81,124.88]
[1747890946669,0.03602613,176.89,176.85,0.04023262]
[1747890946868,5.653,176.86,176.85,0.04023262]
[1747890948770,5.6528,176.87,176.85,0.04023262]
[1747890949170,124.88,176.88,176.85,0.04023262]
[1747890949465,5.6527,176.87,176.85,0.04023262]
[1747890949671,124.88,176.88,176.85,0.04023262]
[1747890949975,5.653,176.86,176.85,0.04023262]
[1747890950772,124.88,176.88,176.85,0.04023262]
[1747890951172,4.1794,176.87,176.85,0.04023262]
[1747890951373,5.653,176.86,176.85,0.04023262]
[1747890951665,4.1794,176.87,176.77,130.5758]
[1747890951971,4.1794,176.87,176.77,124.92]
[1747890952477,1.9992,176.86,176.75,2.0744]
[1747890952673,0.0412503,176.82,176.79,0.03830933]
[1747890953375,5.6955503,176.82,176.79,0.03830933]
[1747890954776,5.6546,176.81,176.79,0.03830933]
[1747890955076,0.0412503,176.82,176.79,0.03830933]
[1747890956271,5.6546,176.81,176.79,0.03830933]
[1747890956676,0.0412503,176.82,176.79,0.03830933]
[1747890956874,5.6549,176.8,176.79,0.03830933]
[1747890959675,0.0412503,176.82,176.79,0.03830933]
[1747890960274,0.0412503,176.82,176.79,5.69350933]
[1747890960989,0.0412503,176.82,176.79,0.03830933]
[1747890961374,5.6957503,176.82,176.79,0.03830933]
[1747890961685,0.0412503,176.82,176.79,0.03830933]
[1747890961981,5.6546,176.81,176.79,0.03830933]
[1747890962183,0.0412503,176.82,176.79,0.03830933]
[1747890962585,5.6957503,176.82,176.79,0.03830933]
[1747890963380,0.0412503,176.82,176.79,0.03830933]
[1747890963679,0.0412503,176.82,176.79,5.69350933]
[1747890963874,0.0412503,176.82,176.79,0.03830933]
[1747890964883,5.6549,176.8,176.79,0.03830933]
[1747890966179,5.6549,176.8,176.79,9.33e-06]
[1747890969779,0.0412503,176.82,176.7,2.0311]
[1747890969981,2.0068,176.79,176.65,124.66]
[1747890970289,126.6024,176.78,176.65,124.66]
[1747890970472,126.6024,176.78,176.63,2.0819]
[1747890970473,7.26338118,176.76,176.63,2.0819]
[1747890970681,7.26338118,176.76,176.63,5.6601]
[1747890970887,0.03863682,176.71,176.68,0.0396376]
[1747890971085,124.66,176.7,176.68,0.0396376]
[1747890971576,5.6584,176.69,176.68,0.0396376]
[1747890972281,126.5618,176.7,176.68,0.0396376]
[1747890972484,132.2199,176.7,176.68,0.0396376]
[1747890973186,0.03863682,176.71,176.68,0.0396376]
[1747890973381,124.68,176.7,176.68,0.0396376]
[1747890973587,0.03863682,176.71,176.68,0.0396376]
[1747890976987,0.03863682,176.71,176.7,5.6581]
[1747890977383,124.7,176.78,176.73,5.6569]
[1747890978389,0.0363305,176.77,176.74,0.03572641]
[1747890978577,0.0363305,176.77,176.74,5.69232641]
[1747890978782,0.0363305,176.77,176.74,0.03572641]
[1747890979090,0.0363305,176.77,176.75,5.6565]
[1747890979891,0.0363305,176.77,176.76,5.6562]
[1747890980686,0.0363305,176.77,176.74,0.03572641]
[1747890982892,1.9152,176.84,176.77,5.6556]
[1747890983393,1.9152,176.84,176.74,124.7]
[1747890983696,0.0399102,176.81,176.77,0.03964819]
[1747890984791,124.68,176.8,176.77,0.03964819]
[1747890985194,5.6556,176.78,176.77,0.03964819]
[1747890985493,124.68,176.8,176.77,0.03964819]
[1747890986093,0.0399102,176.81,176.77,0.03964819]
[1747890988195,0.0399102,176.81,176.77,5.69524819]
[1747890988397,0.0399102,176.81,176.77,0.03964819]
[1747890988898,0.0399102,176.81,176.77,5.69554819]
[1747890989398,0.0399102,176.81,176.78,5.6555]
[1747890989696,0.0399102,176.81,176.77,0.03964819]
[1747890990203,0.0399102,176.81,176.78,5.6554]
[1747890990501,0.0399102,176.81,176.77,0.03964819]
[1747890990802,0.0399102,176.81,176.78,5.6555]
[1747890991307,0.0399102,176.81,176.77,0.03964819]
[1747890993307,0.0399102,176.81,176.77,5.69544819]
[1747890993494,0.0399102,176.81,176.77,0.03964819]
[1747890994605,5.6556,176.78,176.77,0.03964819]
[1747890994906,124.34,176.79,176.71,2.0955]
[1747890995099,5.6575,176.72,176.7,2.0561]
[1747890995307,124.34,176.79,176.67,124.34]
[1747890995506,124.34,176.79,176.66,4.26066413]
[1747890996011,0.03930694,176.74,176.71,0.0391385]
[1747890996306,124.37930694,176.74,176.71,0.0391385]
[1747890996507,0.03930694,176.74,176.71,0.0391385]
[1747890998713,5.69620694,176.74,176.71,0.0391385]
[1747891000314,0.03930694,176.74,176.71,0.0391385]
[1747891004117,0.03930694,176.74,176.72,5.6572]
[1747891005115,0.03930694,176.74,176.71,5.6968385]
[1747891005316,0.03930694,176.74,176.71,0.0391385]
[1747891006618,0.03930694,176.74,176.72,5.6574]
[1747891007617,0.03930694,176.74,176.73,5.6572]
[1747891008721,0.03930694,176.74,176.73,130.0172]
[1747891009421,0.03930694,176.74,176.73,124.36]
[1747891011518,0.03930694,176.74,176.73,5.6572]
[1747891015326,124.36,176.84,176.75,5.6564]
[1747891016426,0.03771734,176.81,176.78,0.0409414]
[1747891017223,5.6552,176.79,176.78,0.0409414]
[1747891018215,5.655,176.8,176.78,0.0409414]
[1747891018419,0.03771734,176.81,176.78,0.0409414]
[1747891018815,5.23403148,176.86,176.78,7.30432258]
[1747891019021,5.23403148,176.86,176.78,114.82432258]
[1747891019330,5.23403148,176.86,176.84,5.6534]
[1747891019723,5.23403148,176.86,176.83,124.36]
[1747891019923,5.27441964,176.86,176.83,124.39708671]
[1747891021231,5.27441964,176.86,176.84,5.6536]
[1747891021433,5.27441964,176.86,176.83,124.39708671]
[1747891021730,5.27441964,176.86,176.85,5.6533]
[1747891021934,0.04038816,176.86,176.85,5.6533]
[1747891025024,6.0437,176.97,176.89,5.652]
[1747891025228,6.0437,176.97,176.88,123.98]
[1747891025229,125.8784,176.97,176.88,123.98]
[1747891025422,129.6297,176.97,176.89,123.98]
[1747891025623,5.6497,176.97,176.93,5.6507]
[1747891025824,5.23403148,176.99,176.89,123.98]
[1747891026024,5.6495,176.97,176.92,5.69244914]
[1747891026228,5.6495,176.97,176.92,0.04144914]
[1747891027035,5.6489,176.99,176.92,0.04144914]
[1747891027231,123.96,177.01,176.92,0.04144914]
[1747891027630,5.6508,176.93,176.92,0.04144914]
[1747891029239,123.96,176.96,176.85,123.94]
[1747891029240,5.6525,176.88,176.85,123.94]
[1747891029937,5.6527,176.87,176.85,123.94]
[1747891030440,5.69185882,176.88,176.85,123.94]
[1747891030639,0.03935882,176.88,176.85,123.94]
[1747891031539,0.03935882,176.88,176.86,5.6527]
[1747891031839,0.03935882,176.88,176.85,123.94]
[1747891032036,0.03935882,176.88,176.85,129.5933]
[1747891032337,0.03935882,176.88,176.85,123.94]
[1747891032840,0.03935882,176.88,176.87,5.6527]
[1747891034037,0.03935882,176.88,176.85,123.94]
[1747891034539,0.03935882,176.88,176.86,5.6528]
[1747891034840,0.03935882,176.88,176.85,123.94]
[1747891035040,0.03935882,176.88,176.86,5.653]
[1747891035542,0.03935882,176.88,176.87,5.6527]
[1747891036843,0.03935882,176.88,176.86,5.6529]
[1747891037147,0.03935882,176.88,176.85,123.94]
[1747891037341,0.03935882,176.88,176.87,5.6527]
[1747891037641,0.03935882,176.88,176.85,123.94]
[1747891038143,0.03935882,176.88,176.86,5.6527]
[1747891038646,0.03935882,176.88,176.87,5.6527]
[1747891039246,0.03935882,176.88,176.86,5.6529]
[1747891039548,0.03935882,176.88,176.85,123.94]
[1747891041044,0.03935882,176.88,176.85,129.5931]
[1747891042343,0.03935882,176.88,176.85,123.94]
[1747891042344,5.6528,176.87,176.85,123.94]
[1747891042655,0.03935882,176.88,176.84,0.04218385]
[1747891042940,5.6529,176.87,176.84,0.04218385]
[1747891043447,0.03935882,176.88,176.84,0.04218385]
[1747891043642,5.6527,176.87,176.84,0.04218385]
[1747891043945,0.03935882,176.88,176.84,5.69578385]
[1747891044241,5.69185882,176.88,176.84,5.69578385]
[1747891044447,0.03935882,176.88,176.85,5.6531]
[1747891044852,5.69195882,176.88,176.84,0.04218385]
[1747891045046,0.03935882,176.88,176.84,0.04218385]
[1747891045446,5.6528,176.87,176.84,5.69558385]
[1747891045648,0.03935882,176.88,176.84,5.69558385]
[1747891045844,0.03935882,176.88,176.84,0.04218385]
[1747891047140,0.03935882,176.88,176.87,5.6527]
[1747891048045,5.23403148,176.97,176.86,123.94]
[1747891048447,5.23403148,176.97,176.87,1.9141]
[1747891049143,5.23403148,176.97,176.9,0.03888239]
[1747891049347,5.23403148,176.97,176.91,123.94]
[1747891049651,5.6492,176.98,176.91,123.94]
[1747891049946,5.6492,176.98,176.93,0.03604719]
[1747891050654,5.6492,176.98,176.93,5.68674719]
[1747891050953,127.8731,177.02,176.93,0.03604719]
[1747891051251,127.8731,177.02,176.94,5.6504]
[1747891051453,5.649,176.99,176.94,5.6504]
[1747891052047,127.8731,177.02,176.93,0.03604719]
[1747891052654,9.5813,177.02,176.93,0.03604719]
[1747891052854,3.9331,177.02,176.93,0.03604719]
[1747891053055,5.6491,176.99,176.94,5.6504]
[1747891053353,3.9331,177.02,176.93,0.03604719]
[1747891053747,5.6482,177.01,176.93,0.03604719]
[1747891054555,5.6482,177.01,176.97,5.6494]
[1747891054759,5.6482,177.01,176.97,5.68785566]
[1747891055049,3.9331,177.02,176.97,0.03845566]
[1747891055254,5.648,177.02,176.98,5.6491]
[1747891055552,125.6076,177.06,176.97,0.03845566]
[1747891055553,127.5028,177.06,176.97,0.03845566]
[1747891055750,5.6475,177.04,177.0,5.6483]
[1747891055951,127.5028,177.06,177.0,0.04178135]
[1747891056347,1.8952,177.06,177.0,0.04178135]
[1747891056956,7.5421,177.06,177.01,5.6482]
[1747891057148,5.23403148,177.08,177.01,123.62]
[1747891057457,5.6463,177.07,177.01,123.62]
[1747891057653,5.6463,177.07,177.02,0.03773672]
[1747891057847,5.6463,177.07,177.03,5.6473]
[1747891058049,5.646,177.08,177.02,0.03773672]
[1747891058348,1.9997,177.1,177.02,0.03773672]
[1747891058547,5.6466,177.07,177.03,5.6473]
[1747891059160,5.6466,177.06,177.03,5.6473]
[1747891060160,1.9997,177.1,177.02,0.03773672]
[1747891060856,5.647,177.05,177.02,0.03773672]
[1747891061459,5.23403148,177.14,177.02,7.28408433]
[1747891061656,5.23403148,177.14,177.06,0.04061977]
[1747891061958,5.23403148,177.14,177.07,129.28]
[1747891062460,5.23403148,177.14,177.08,2.0058]
[1747891062861,4.1278,177.18,177.08,2.0058]
[1747891063061,4.1278,177.18,177.11,0.03940187]
[1747891063360,5.6432,177.17,177.12,5.6446]
[1747891063559,4.1278,177.18,177.11,0.03940187]
[1747891063761,5.6435,177.16,177.11,0.03940187]
[1747891064864,4.1278,177.18,177.11,0.03940187]
[1747891065055,4.1278,177.18,177.13,5.6443]
[1747891065562,9.7707,177.18,177.13,5.6443]
[1747891065762,4.1278,177.18,177.13,5.6443]
[1747891066263,4.1278,177.18,177.12,129.24]
[1747891066658,9.7709,177.18,177.12,134.8844]
[1747891066956,9.7709,177.18,177.12,129.24]
[1747891067663,9.7709,177.18,177.13,5.6441]
[1747891067863,7.7378,177.18,177.13,5.6441]
[1747891069861,5.6431,177.17,177.13,5.6441]
[1747891070054,2.0947,177.18,177.12,134.8847]
[1747891070368,7.7377,177.18,177.12,129.24]
[1747891070568,2.0947,177.18,177.12,129.24]
[1747891070867,5.6434,177.16,177.12,129.24]
[1747891071166,5.6434,177.16,177.12,134.8845]
[1747891073070,5.6434,177.16,177.13,5.6444]
[1747891073260,5.6431,177.17,177.13,5.6444]
[1747891073463,5.6431,177.17,177.12,129.24]
[1747891073864,5.6431,177.17,177.13,5.6443]
[1747891074371,5.6428,177.18,177.12,129.24]
[1747891075174,5.6428,177.18,177.14,5.6438]
[1747891075571,4.0625,177.24,177.12,129.24]
[1747891075769,4.0625,177.24,177.15,0.04049113]
[1747891075972,2.0434,177.24,177.15,0.04049113]
[1747891076276,5.6425,177.19,177.15,5.68419113]
[1747891076475,2.0434,177.24,177.15,0.04049113]
[1747891076776,2.0434,177.24,177.16,5.6434]
[1747891077273,2.0434,177.24,177.15,0.04049113]
[1747891077274,2.0434,177.24,177.17,5.643]
[1747891077474,2.0434,177.24,177.19,0.03924512]
[1747891077868,2.0539,177.25,177.2,5.6421]
[1747891078071,2.0539,177.25,177.19,0.03924512]
[1747891079479,5.6415,177.23,177.19,0.03924512]
[1747891079877,2.0539,177.25,177.19,0.03924512]
[1747891081586,5.6422,177.2,177.19,0.03924512]
[1747891081782,2.0539,177.25,177.19,0.03924512]
[1747891082176,5.641,177.24,177.19,5.68164512]
[1747891082674,2.0539,177.25,177.19,0.03924512]
[1747891083884,2.0539,177.25,177.2,5.6422]
[1747891084379,5.641,177.24,177.19,5.68174512]
[1747891084887,2.0539,177.25,177.19,0.03924512]
[1747891085184,5.6422,177.2,177.19,0.03924512]
[1747891085379,140.82,177.24,177.11,628.58]
[1747891085572,7.24634761,177.23,177.08,1.9694]
[1747891085780,7.24634761,177.23,177.08,142.7894]
[1747891085979,2.008,177.22,177.08,142.7894]
[1747891086281,2.008,177.22,177.1,5.6453]
[1747891086584,0.03876567,177.18,177.14,0.03957518]
[1747891087484,5.6432,177.17,177.14,0.03957518]
[1747891087681,0.03876567,177.18,177.14,0.03957518]
[1747891088580,5.6432,177.17,177.14,0.03957518]
[1747891089386,5.6435,177.16,177.14,0.03957518]
[1747891090282,5.6438,177.15,177.14,0.03957518]
[1747891090693,1.9222,177.17,177.06,140.82]
[1747891090879,1.9222,177.17,177.03,142.8157]
[1747891091286,5.6453,177.11,177.06,5.6464]
[1747891091682,0.0409501,177.1,177.07,0.03733061]
[1747891091978,0.0409501,177.1,177.08,5.6458]
[1747891095388,0.0409501,177.1,177.07,5.68353061]
[1747891095591,0.0409501,177.1,177.07,0.03733061]
[1747891096888,0.0409501,177.1,176.97,142.9047]
[1747891097089,1.9682,177.11,176.97,142.9047]
[1747891097291,3.9745,177.11,176.97,142.9047]
[1747891097793,0.03918349,177.06,177.03,0.03752218]
[1747891098684,5.6473,177.04,177.03,0.03752218]
[1747891098887,0.03918349,177.06,177.03,0.03752218]
[1747891100695,5.6472,177.05,177.03,0.03752218]
[1747891100891,0.03918349,177.06,177.03,0.03752218]
[1747891101794,5.6473,177.04,177.03,0.03752218]
[1747891103994,0.03918349,177.06,177.03,0.03752218]
[1747891105096,5.6471,177.05,177.03,0.03752218]
[1747891105597,5.68588349,177.06,177.03,0.03752218]